Cogmind - Beta 14 @@@ ROGUE MODE // 2024.10.27 @ 15:05:45 Player: weedlord420 Result: Core destroyed Performance ------------- Evolutions (0) 0 Regions Visited (2) 400 Robots Destroyed (12) 60 Value Destroyed (372) 372 Prototype IDs (0) 0 Alien Tech Used (0) 0 Bonus (-15) -15 TOTAL SCORE: 817 Bonus ------- Friendly Fire -15 Cogmind --------- Core Integrity 0/250 Matter 300/300 Energy 250/250 System Corruption 0% Temperature Critical (517) Movement Rolling (90) Location -10/Mines Parts ------- > --- POWER (1) -------- Ion Engine > --- PROPULSION (2) --- Wheel Compact Wheel > --- UTILITY (2) ------ Medium Storage Unit Targeting Computer > --- WEAPON (2) ------- Particle Gun Beam Cannon > --- INVENTORY (10) --- Ion Engine Wheel Compact Wheel Improved Heat Sink Sensor Array Assault Rifle Grenade Launcher Peak State ------------ > --- POWER ------------ Ion Engine > --- PROPULSION ------- Wheel Compact Wheel > --- UTILITY ---------- Medium Storage Unit Targeting Computer > --- WEAPON ----------- Particle Gun Beam Cannon > --- INVENTORY -------- Wheel Improved Heat Sink Sensor Array Assault Rifle Grenade Launcher [Rating: 8] Favorites ----------- Power Ion Engine Engine Ion Engine Propulsion Compact Wheel Wheel Compact Wheel Utility Targeting Computer Storage Medium Storage Unit Processor Targeting Computer Weapon Assault Rifle Energy Gun Particle Gun Energy Cannon Beam Cannon Ballistic Gun Assault Rifle Launcher Grenade Launcher Build | -11 -10 -10 ------- Run | Yrd Mat Min Slots Evolved . | . . . Power . | . . . Propulsion . | . . . Utility . | . . . Weapon . | . . . Parts Attached 16 | 7 9 . Power 2 | 1 1 . Engine 2 | 1 1 . Core . | . . . Reactor . | . . . Propulsion 3 | 2 1 . Treads . | . . . Leg . | . . . Wheel 3 | 2 1 . Hover . | . . . Flight . | . . . Utility 3 | 1 2 . Device . | . . . Storage 2 | 1 1 . Processor 1 | . 1 . Hackware . | . . . Protection . | . . . Artifact . | . . . Weapon 8 | 3 5 . Energy Gun 3 | 2 1 . Energy Cannon 3 | . 3 . Ballistic Gun 1 | 1 . . Ballistic Cannon . | . . . Launcher 1 | . 1 . Special Weapon . | . . . Impact Weapon . | . . . Slashing Weapon . | . . . Piercing Weapon . | . . . Special Melee Weapon . | . . . Unidentified Prototypes . | . . . Parts Lost 5 | . 5 . Power 1 | . 1 . Propulsion 1 | . 1 . Utility 1 | . 1 . Weapon 2 | . 2 . Highest Loss Streak 4 | . 4 . To Critical Strikes . | . . . Average Slot Usage (%) 90 | . 89 100 Engine 14 | . 14 14 Wheel 27 | . 27 28 Storage 13 | . 13 14 Processor 10 | . 10 14 Energy Gun 8 | . 8 14 Energy Cannon 6 | . 6 14 Ballistic Gun 8 | . 8 . Peak Build Rating 8 | 6 8 8 Average Rating 6 | 4 6 8 On Entrance 4 | . 6 8 Naked Turns . | . . . Heaviest Build 21 | 14 21 . Greatest Support 26 | 26 26 . Greatest Overweight (x) . | . . . Average Overweight (x) . | . . . Largest Inventory Capacity 10 | 8 10 10 Average Capacity 9 | 7 9 10 Most Carried 7 | 5 7 7 Average Carried 3 | 1 4 7 Final Capacity 10 | 8 10 10 Final Carried 7 | 1 7 7 Class Distribution -------------------- 100% | Mutant Dominant Class ---------------- Mutant | -10/Materials Mutant | -10/Mines Resources | -11 -10 -10 ----------- Run | Yrd Mat Min Matter Collected 464 | 270 194 . Remotely . | . . . Salvage Created 466 | . 427 39 Parts 31 | . 29 2 Haulers Intercepted . | . . . Recyclers Shooed . | . . . Parts Field Recycled . | . . . Retrieved Matter . | . . . Parts Self-Destructed . | . . . Prevented . | . . . Kills | -11 -10 -10 ------- Run | Yrd Mat Min Combat Hostiles Destroyed 7 | . 6 1 Guns 5 | . 4 1 Cannons 2 | . 2 . Classes Destroyed 6 | . 6 . Worker 1 | . 1 . Recycler 1 | . 1 . Mechanic 1 | . 1 . Operator 1 | . 1 . Watcher 1 | . 1 . Grunt 7 | . 6 1 Best Kill Streak 2 | . 2 1 Combat Bots Only 2 | . 2 1 Max Kills in Single Turn 1 | . 1 1 Gunslinging . | . . . Exploded . | . . . Melee . | . . . Uniques/NPCs Destroyed . | . . . Combat | -11 -10 -10 -------- Run | Yrd Mat Min Hostile Shots Fired 49 | . 36 13 Missed 9 | . 8 1 Damage Taken 780 | . 584 196 Core 254 | . 127 127 Absorbed by Shields . | . . . Core Remaining (%) 100 | 100 . . Volleys Fired 59 | . 52 7 Largest 2 | . 2 2 Hottest 125 | . 125 125 Shots Fired 104 | . 90 14 Gun 79 | . 72 7 Cannon 24 | . 17 7 Launcher 1 | . 1 . Special . | . . . Kinetic 39 | . 39 . Thermal 43 | . 29 14 Explosive 1 | . 1 . Electromagnetic 21 | . 21 . Robot Hit Streak 12 | . 12 6 Robot Miss Streak 7 | . 4 7 Penetration Max . | . . . Secondary Targets . | . . . Shots Hit Robots 61 | . 55 6 Core Hits 20 | . 18 2 Critical Kills . | . . . Critical Parts Destroyed . | . . . Critical Strikes . | . . . Melee Attacks . | . . . Impact . | . . . Slashing . | . . . Piercing . | . . . Sneak Attacks . | . . . Combat Hostiles . | . . . Follow-up Attacks . | . . . Damage Inflicted 858 | . 752 106 Guns 616 | . 562 54 Cannons 242 | . 190 52 Explosions . | . . . Melee . | . . . Ramming . | . . . Kinetic 327 | . 327 . Thermal 340 | . 234 106 Explosive . | . . . Electromagnetic 191 | . 191 . Impact . | . . . Slashing . | . . . Piercing . | . . . Highest Corruption . | . . . Average Corruption . | . . . Corruption Purged . | . . . Corruption Blocked . | . . . Overload Shots . | . . . Overflow Damage . | . . . Projectiles . | . . . Explosions . | . . . Melee . | . . . Knockbacks . | . . . Impact . | . . . Kinetic . | . . . Secondary . | . . . Self-Inflicted Damage 3 | . 3 . Shots 1 | . 1 . Rammed . | . . . Targets Rammed . | . . . Kicked . | . . . Crushed . | . . . Highest Temperature 517 | . 192 517 Average Temperature 82 | . 57 279 Received Heat Transfer 315 | . 234 81 Effects 3 | . . 3 Shutdowns 1 | . . 1 Damage (minor) 1 | . . 1 Damage (core) 1 | . . 1 Siege Activations . | . . . Robots Corrupted . | . . . Combat Hostiles . | . . . Parts Fried . | . . . Impact Corruptions . | . . . Robots Melted . | . . . Combat Hostiles . | . . . Parts Melted . | . . . Heat Transferred 777 | . 518 259 Parts Sabotaged . | . . . Parts Stolen . | . . . Parts Stripped . | . . . Power Chain Reactions . | . . . Alert | -11 -10 -10 ------- Run | Yrd Mat Min Peak Influence 140 | . 140 52 Initial 7 | . . 7 Average 55 | . 59 31 Maximum Alert Level . | . . . Low Security (%) 100 | 100 100 100 Level 1 . | . . . Level 2 . | . . . Level 3 . | . . . Level 4 . | . . . Level 5 . | . . . High Security . | . . . Max Security . | . . . Squads Dispatched . | . . . Investigation . | . . . Extermination . | . . . Reinforcement . | . . . Assault . | . . . Garrison . | . . . Intercept . | . . . Searches Triggered . | . . . Construction Impeded . | . . . Haulers Reinforced . | . . . Active Scanning Responses . | . . . Cargo Convoy Interrupts . | . . . Stealth | -11 -10 -10 --------- Run | Yrd Mat Min Distress Signals . | . . . Communications Jammed . | . . . Distress Signals . | . . . Times Spotted 16 | . 14 2 Peak Tracking Total 3 | . 3 2 Tactical Retreats . | . . . Traps | -11 -10 -10 ------- Run | Yrd Mat Min Traps Triggered 1 | . 1 . Indirectly . | . . . Trap Hack Attempts . | . . . Triggered . | . . . Disarmed . | . . . Reprogrammed . | . . . Reused . | . . . Traps Extracted . | . . . Installed . | . . . Triggered . | . . . Machines | -11 -10 -10 ---------- Run | Yrd Mat Min Machines Disabled 3 | . 2 1 Max in Single Turn 1 | . 1 1 Machines Repaired . | . . . Machines Dismantled . | . . . Machines Sabotaged . | . . . Overloaded Fab Kills . | . . . Hacking | -11 -10 -10 --------- Run | Yrd Mat Min Machines Accessed 4 | . 4 . Terminals 4 | . 4 . Fabricators . | . . . Repair Stations . | . . . Recycling Units . | . . . Scanalyzers . | . . . Garrison Access . | . . . Total Hacks 9 | . 9 . Successful 2 | . 2 . Failed 7 | . 7 . Catastrophic 1 | . 1 . Database Lockouts . | . . . Manual 9 | . 9 . Terminals 9 | . 9 . Fabricators . | . . . Repair Stations . | . . . Recycling Units . | . . . Scanalyzers . | . . . Garrison Access . | . . . Terminal Hacks . | . . . Fabricator Hacks . | . . . Repair Station Hacks . | . . . Recycling Unit Hacks . | . . . Scanalyzer . | . . . Garrison Access Hacks . | . . . Unauthorized Hacks 2 | . 2 . Terminals 2 | . 2 . Assimilate 1 | . 1 . Operators 1 | . 1 . Fabricators . | . . . Repair Stations . | . . . Recycling Units . | . . . Scanalyzers . | . . . Garrison Access . | . . . Data Cores Recovered . | . . . Used . | . . . Hacking Detections 4 | . 4 . Full Trace Events . | . . . Feedback Events . | . . . Feedback Blocked . | . . . Robot Schematics Acquired . | . . . Robots Built . | . . . Authchips . | . . . Time . | . . . Total Robot Build Rating . | . . . Part Schematics Acquired . | . . . Parts Built . | . . . Authchips . | . . . Time . | . . . Total Part Build Rating . | . . . Parts Repaired . | . . . Time . | . . . Parts Recycled . | . . . Recycled Matter . | . . . Retrieved Matter . | . . . Retrieved Components . | . . . Parts Scanalyzed . | . . . Part Schematics Acquired . | . . . Parts Damaged . | . . . Bothacking | -11 -10 -10 ------------ Run | Yrd Mat Min Used RIF Installer . | . . . Robots Hacked . | . . . Non-combat . | . . . Combat . | . . . Robot Hacks Applied . | . . . Relay Couplers Released . | . . . Fabnet Peak Effective % . | . . . Robots Rewired . | . . . Allies Hacked . | . . . Hacks Repelled . | . . . Allies | -11 -10 -10 -------- Run | Yrd Mat Min Total Allies 1 | . 1 . Largest Group 1 | . 1 1 Highest-Rated Group 10 | . 10 10 Highest-Rated Ally 10 | . 10 10 Total Orders . | . . . Ally Attacks . | . . . Total Damage . | . . . Kills . | . . . Allies Corrupted . | . . . Allies Melted . | . . . Intel | -11 -10 -10 ------- Run | Yrd Mat Min Robot Analysis Total . | . . . Derelict Logs Recovered . | . . . Drone Launches . | . . . Drone Recoveries . | . . . Exploration | -11 -10 -10 ------------- Run | Yrd Mat Min Turns Passed 935 | 49 866 20 Spaces Moved 717 | 43 674 . Core 11 | 11 . . Treads . | . . . Legs . | . . . Wheels 706 | 32 674 . Hover . | . . . Flight . | . . . Fastest Speed 50 | 50 90 . Average Speed 89 | 79 90 . Slowest Speed 90 | 90 90 . Overloaded Moves . | . . . Propulsion Burnouts . | . . . Robots Hopped . | . . . Cave-ins Triggered . | . . . Exploration Rate (%) 32 | 4 91 3 Regions Visited 2 Branch Regions 1 Pre-discovered Areas . | . . . Known Exits Taken . | . . . Unknown Exits Taken 2 | 1 1 . Scrap Searched . | . . . Spaces Dug 7 | . 7 . Terrain Destroyed 7 | . 7 . Melee . | . . . Projectile . | . . . AOE 7 | . 7 . Terrain Rammed . | . . . Walls Destroyed . | . . . Machines Disabled . | . . . Actions | -11 -10 -10 --------- Run | Yrd Mat Min Total 906 | 57 842 7 Wait 93 | . 93 . Move 715 | 42 673 . Hop . | . . . Pick Up 21 | 7 14 . Fast Attach 1 | 1 . . Attach 12 | 5 7 . Detach . | . . . Swap 3 | 1 2 . Drop 2 | 1 1 . Fire 59 | . 52 7 Melee . | . . . Ram . | . . . Kick . | . . . Crush . | . . . Escape Stasis . | . . . Rewire . | . . . Trap . | . . . Miscellaneous . | . . . Route ------- -11/Scrapyard -10/Materials (discovered 4 exits: [*Mat x3] / [*Min]) -10/Mines History --------- Turn | Location | Event 23 | -11/Scrapyard | Discovered new exit (range 15) 50 | -11/Scrapyard | Entered Materials 109 | -10/Materials | Discovered new exit (range 16) 241 | -10/Materials | Core integrity fell below 50% 271 | -10/Materials | Lost 4 parts (1p1n1u1w) 315 | -10/Materials | Build established: Mutant 445 | -10/Materials | Discovered new exit (range 11) 610 | -10/Materials | Discovered new exit (range 14) 734 | -10/Materials | Discovered new exit (range 6) 916 | -10/Materials | Entered Mines 916 | -10/Mines | Accompanied by 1 ally 935 | -10/Mines | Core integrity fell below 20% 937 | -10/Mines | Core destroyed Last Messages --------------- 00734_ EXIT=FOUND 00738_ Connecting with Terminal... 00775_ Purification Channel disabled. 00790_ Acquired 30 matter. 00828_ R-06 Scavenger destroyed. 00832_ O-16 Technician: "IFF HANDSHAKE FAILED. SECURING TERMINAL." 00833_ Terminal disabled. 00855_ O-16 Technician destroyed. 00863_ Technician 1a reveals location of hidden door. 00908_ Technician 1a reveals location of Blade Trap. LOCATION=UNKNOWN GOAL=ESCAPE 00922_ G-47 Trooper destroyed. 00931_ Overheating: Beam Cannon damaged (-54). 00931_ Core Extractor disabled. 00936_ Power failure, Ion Engine shutdown. 00937_ Overheating: Core damaged (-47). Map ----- +----------------------------------------------------+ | ?????????????????????????????????????????????????? | | ?????????????????????????????????????????????????? | | ?????????????????????????????????????????????????? | | ?????????????????????????????????????????????????? | | ?????????????????????????????????????????????????? | | ?????????????????????????????????????????????????? | | ?????????????????????????????????????????????????? | | ?????????????????????????????????????????????????? | | ?????????????????????????????????????????????????? | | ?????????????????????????????????????????????????? | | ?????????????????????????????????????????????????? | | ?????????????????????????????????????????????????? | | ?????????????????????????????????????????????????? | | ?????????????????????????????????????????????????? | | ?????????????????????????????????????????????????? | | ?????????????????????????????????????????????????? | | ?????????????????????????????????????????????????? | | ?????????????????????????????????????????????????? | | ?????????????????????????????????????????????????? | | ??????????????????????########???????????????????? | | ??????????????????????# #???????????????????? | | ??????????????????????# """ #???????????????????? | | ??????????????????????# g""" #???????????????????? | | ??????????????????????#=% "" #???????????????????? | | ??????????????????????# ! #???????????????????? | | ??????????????????????# @ #???????????????????? | | ??????????????????????# #???????????????????? | | ??????????????????????###o####???????????????????? | | ????????????????????????# #??????????????????????? | | ????????????????????????# #??????????????????????? | | ????????????????????????# #??????????????????????? | | ????????????????????????# #??????????????????????? | | ????????????????????????# #??????????????????????? | | ????????????????????????# #??????????????????????? | | ????????????????????????? ???????????????????????? | | ?????????????????????????#???????????????????????? | | ?????????????????????????????????????????????????? | | ?????????????????????????????????????????????????? | | ?????????????????????????????????????????????????? | | ?????????????????????????????????????????????????? | | ?????????????????????????????????????????????????? | | ?????????????????????????????????????????????????? | | ?????????????????????????????????????????????????? | | ?????????????????????????????????????????????????? | | ?????????????????????????????????????????????????? | | ?????????????????????????????????????????????????? | | ?????????????????????????????????????????????????? | | ?????????????????????????????????????????????????? | | ?????????????????????????????????????????????????? | | ?????????????????????????????????????????????????? | +----------------------------------------------------+ Best States ------------- Heat Dissipation 25 Energy Generation 10 Energy Capacity 250 Matter Stores 300 Matter Capacity 300 Sight Range 16 Terrain Scan Density 10 Evasion (%) 50 Targeting Accuracy 5 Item Schematics ----------------- None Robot Schematics ------------------ None Fabricated ------------ Nothing Alien Tech Used ----------------- None Achievements -------------- None Challenges ------------ None Game ------ Seed LongswordNeutronPod Manual? 0 Play Time 00:05:48 Cumulative 84.6 hours Start 2024.10.27 @ 15:00:04 End 2024.10.27 @ 15:05:45 Sessions 1 Manual Loads 0 Difficulty Rogue Special Mode None Game No. 140 Rogue 139 Adventurer 1 Explorer 0 Win Type - Total 0 Types 0/0/0/0/0/0/0/0/0 Lore% 50 Gallery% 52 Achievement% 44 Wizard Run 0 Options --------- Layout 1 ASCII 0 Keyboard 0 Movement Mouse Keybinds 0 Fullscreen 2 Font 24/Terminus Map View 50x35 Zoom Use 0% Tactical HUD 1 Map Filters NONE Filters NONE Steam 1 RUN: 4e9b698b-3e85-4147-a526-9579521f0128